bitfinex-derivatives/quotes_BTCF0:USTF0_20220103
["timestamp","ask_amount","ask_price","bid_price","bid_amount"]
[1641225901118,0.21040005,46744.0,46736.0,0.6027227]
[1641225901320,0.21040005,46744.0,46735.0,0.6027227]
[1641225901720,0.18,46737.0,46735.0,0.6027227]
[1641225902020,0.03219824,46736.0,46727.0,0.86129477]
[1641225902323,0.009794,46736.0,46730.0,0.60417324]
[1641225902520,0.199794,46736.0,46735.0,0.001]
[1641225902719,0.199794,46736.0,46730.0,0.69853324]
[1641225903219,0.199794,46736.0,46730.0,0.09436]
[1641225903620,0.199794,46736.0,46735.0,0.001]
[1641225903819,0.009794,46736.0,46735.0,0.001]
[1641225904219,0.009794,46736.0,46727.0,0.14033567]
[1641225904420,0.02140287,46733.0,46727.0,0.14033567]
[1641225906725,0.20940287,46733.0,46727.0,0.14033567]
[1641225907524,0.02140655,46728.0,46722.0,0.14033567]
[1641225907726,0.189794,46727.0,46717.0,0.02]
[1641225908623,0.381794,46727.0,46717.0,0.02]
[1641225909027,0.14033567,46723.0,46717.0,0.02]
[1641225910630,0.32833567,46723.0,46717.0,0.02]
[1641225911232,0.81666775,46718.0,46717.0,0.2]
[1641225911629,0.81666775,46718.0,46717.0,0.517845]
[1641225911828,1.98333596,46720.0,46717.0,0.517845]
[1641225912030,0.81666775,46720.0,46717.0,0.4883169]
[1641225912631,0.81666775,46720.0,46719.0,0.001]
[1641225912831,0.81666775,46720.0,46717.0,0.395505]
[1641225913031,0.81666775,46720.0,46719.0,0.14033567]
[1641225913431,0.81666775,46723.0,46719.0,0.32033567]
[1641225913632,0.81666775,46723.0,46719.0,0.64246067]
[1641225914033,0.81666775,46723.0,46719.0,0.46246067]
[1641225914234,0.81666775,46722.0,46719.0,1.06633307]
[1641225915134,0.81666775,46722.0,46719.0,0.14033567]
[1641225915737,0.81666775,46722.0,46721.0,0.001]
[1641225916034,0.81666775,46722.0,46719.0,0.32033567]
[1641225916234,0.81666775,46721.0,46719.0,0.32033567]
[1641225916637,0.81666775,46721.0,46720.0,0.001]
[1641225916834,0.81666775,46721.0,46720.0,0.400783]
[1641225917035,0.81666775,46721.0,46720.0,0.399783]
[1641225917234,0.81666775,46721.0,46720.0,0.400783]
[1641225917636,0.92266775,46722.0,46720.0,0.400783]
[1641225917835,0.92266775,46722.0,46720.0,0.399783]
[1641225918037,0.81666775,46722.0,46721.0,0.05486314]
[1641225918240,0.81666775,46722.0,46721.0,0.05586314]
[1641225918538,0.81666775,46722.0,46721.0,0.32126]
[1641225918840,0.81666775,46726.0,46721.0,1.82266051]
[1641225919039,0.81666775,46726.0,46725.0,0.001]
[1641225919438,0.81666775,46726.0,46721.0,1.82166051]
[1641225919840,0.81666775,46727.0,46722.0,0.65487416]
[1641225920140,0.81666775,46727.0,46723.0,0.60381974]
[1641225920841,0.173,46727.0,46723.0,0.60381974]
[1641225921939,0.009794,46732.0,46723.0,0.60381974]
[1641225922539,0.009794,46732.0,46722.0,0.60381974]
[1641225922739,0.169794,46732.0,46722.0,0.60381974]
[1641225923339,0.169794,46732.0,46723.0,0.60381974]
[1641225924159,0.009794,46732.0,46723.0,0.60381974]
[1641225924762,0.171794,46732.0,46723.0,0.60381974]
[1641225924960,0.171794,46732.0,46731.0,0.001]
[1641225925160,0.171794,46732.0,46731.0,0.068]
[1641225925562,0.171794,46732.0,46731.0,0.067]
[1641225925963,0.009794,46732.0,46731.0,0.068]
[1641225926165,0.009794,46732.0,46731.0,0.067]
[1641225926564,0.009794,46732.0,46731.0,0.068]
[1641225926766,0.199794,46732.0,46731.0,0.068]
[1641225928067,0.009794,46732.0,46725.0,0.60381974]
[1641225928770,0.204794,46732.0,46725.0,0.60381974]
[1641225929466,0.204794,46732.0,46724.0,0.60381974]
[1641225930066,0.009794,46732.0,46724.0,0.60381974]
[1641225930768,0.150794,46732.0,46724.0,0.60381974]
[1641225931968,0.18,46730.0,46724.0,0.60381974]
[1641225932169,0.009794,46732.0,46724.0,0.60381974]
[1641225932368,0.18,46730.0,46724.0,0.60381974]
[1641225933169,0.02140528,46728.0,46724.0,0.60381974]
[1641225933569,1.17244613,46725.0,46721.0,0.60381974]
[1641225933769,1.17244613,46725.0,46724.0,0.001]
[1641225934469,1.17244613,46725.0,46721.0,0.60381974]
[1641225934669,1.34444613,46725.0,46721.0,0.60381974]
[1641225935271,1.34444613,46725.0,46724.0,0.001]
[1641225935470,0.172,46725.0,46722.0,0.32084]
[1641225935670,0.172,46725.0,46724.0,0.001]
[1641225936070,1.17244613,46726.0,46722.0,0.32084]
[1641225936470,1.17244613,46727.0,46725.0,0.001]
[1641225936672,1.17244613,46727.0,46726.0,0.001]
[1641225937274,0.02140407,46731.0,46726.0,0.001]
[1641225937471,0.02140407,46731.0,46730.0,0.001]
[1641225938072,0.02240407,46731.0,46721.0,0.60381974]
[1641225938371,0.02140407,46731.0,46730.0,0.001]
[1641225938571,0.02240407,46731.0,46730.0,0.001]
[1641225938772,0.19140407,46731.0,46730.0,0.001]
[1641225939176,0.19140407,46731.0,46722.0,0.60381974]
[1641225939373,0.169,46731.0,46730.0,0.001]
[1641225939573,0.17,46731.0,46722.0,0.60381974]
[1641225939774,0.169,46731.0,46722.0,0.60381974]
[1641225940174,0.009794,46732.0,46721.0,0.60381974]
[1641225940374,0.009794,46732.0,46723.0,0.32062]
[1641225940576,0.009794,46732.0,46721.0,0.92043774]
[1641225940774,0.178794,46732.0,46721.0,0.92043774]
[1641225940974,0.178794,46732.0,46722.0,0.60381974]
[1641225941976,0.178794,46732.0,46722.0,1.28933868]
[1641225942675,0.194794,46732.0,46722.0,1.28933868]
[1641225942875,0.194794,46732.0,46721.0,0.78381974]
[1641225943076,0.194794,46732.0,46731.0,0.001]
[1641225943275,0.195794,46732.0,46731.0,0.001]
[1641225943476,0.195794,46732.0,46721.0,0.78381974]
[1641225943676,0.194794,46732.0,46731.0,0.001]
[1641225943877,0.195794,46732.0,46731.0,0.001]
[1641225944076,0.010794,46732.0,46731.0,0.001]
[1641225944278,0.010794,46732.0,46721.0,0.60381974]
[1641225944478,0.09681875,46732.0,46721.0,0.60381974]
[1641225944876,0.26581875,46732.0,46721.0,0.60381974]
[1641225945077,0.26581875,46732.0,46722.0,0.322746]
[1641225946680,0.28281875,46732.0,46722.0,0.322746]
[1641225947479,0.28281875,46732.0,46724.0,0.18]
[1641225947685,0.0214015,46736.0,46731.0,0.18]
[1641225947882,0.14033567,46738.0,46731.0,0.18]
[1641225948082,0.14033567,46738.0,46732.0,0.004008]
[1641225948281,0.14033567,46738.0,46737.0,0.001]
[1641225948682,0.14033567,46738.0,46737.0,0.185]
[1641225948883,0.11,46738.0,46737.0,0.185]
[1641225949082,0.11,46738.0,46737.0,0.186]
[1641225949983,0.11,46738.0,46737.0,0.185]
[1641225950184,0.16173459,46742.0,46734.0,0.32033567]
[1641225950787,0.16173459,46742.0,46734.0,0.50933567]
[1641225950983,0.14033567,46742.0,46735.0,0.321708]
[1641225952686,0.14033567,46742.0,46734.0,0.14033567]
[1641225952888,0.16173459,46742.0,46735.0,0.187]
[1641225953089,0.14033567,46742.0,46741.0,0.001]
[1641225954288,0.16173503,46742.0,46735.0,0.187]
[1641225954488,0.14033567,46742.0,46735.0,0.187]
[1641225954691,0.02140116,46737.0,46734.0,0.14033567]
[1641225954893,0.02140039,46739.0,46735.0,0.192]
[1641225955990,0.02140039,46739.0,46735.0,0.25223]
[1641225956188,0.02140039,46739.0,46735.0,0.06023]
[1641225956792,0.18240039,46739.0,46735.0,0.24923]
[1641225957592,0.14033567,46736.0,46735.0,0.24923]
[1641225957790,0.16173827,46736.0,46735.0,0.24923]
[1641225957991,0.16273827,46736.0,46725.0,0.60381974]
[1641225958190,0.18,46733.0,46725.0,0.60381974]
[1641225958392,0.09277,46733.0,46725.0,0.60381974]
[1641225958597,0.09277,46733.0,46722.0,3.8708]
[1641225958598,0.27277,46733.0,46722.0,3.8708]
[1641225958790,0.18,46730.0,46722.0,0.0322]
[1641225958991,0.45577,46733.0,46722.0,0.0322]
[1641225959292,0.18,46732.0,46722.0,0.0322]
[1641225959490,0.82770651,46723.0,46722.0,0.0322]
[1641225960091,0.82770651,46723.0,46722.0,0.0332]
[1641225960293,0.82770651,46724.0,46722.0,0.0322]
[1641225960690,0.82770651,46724.0,46722.0,0.351905]
[1641225960891,0.99670651,46724.0,46723.0,0.001]
[1641225961293,0.169,46724.0,46723.0,0.001]
[1641225961892,0.99670651,46724.0,46723.0,0.001]
[1641225962090,0.82770651,46724.0,46723.0,0.001]
[1641225962494,0.82770651,46724.0,46722.0,0.0322]
[1641225962892,1.01070651,46724.0,46723.0,0.001]
[1641225964394,1.01070651,46724.0,46722.0,0.0322]
[1641225964795,1.01170651,46724.0,46722.0,0.0322]
[1641225966194,0.82770651,46725.0,46722.0,0.0322]
[1641225966794,1.00370651,46725.0,46722.0,0.0322]
[1641225967197,0.176,46725.0,46722.0,0.0322]
[1641225967395,0.176,46725.0,46723.0,0.321011]
[1641225968194,0.82770651,46726.0,46723.0,0.321011]
[1641225968794,1.00370651,46726.0,46725.0,0.001]
[1641225969294,1.02511322,46726.0,46721.0,0.60381974]
[1641225969497,0.16274396,46722.0,46717.0,1.20789478]
[1641225969695,0.18,46719.0,46711.0,1.9882]
[1641225969898,0.18,46719.0,46710.0,1.44861501]
[1641225970297,0.02141053,46717.0,46708.0,1.44861501]
[1641225970496,0.02141053,46717.0,46715.0,1.20759102]
[1641225970896,0.19741053,46717.0,46715.0,1.20759102]
[1641225971500,0.14033567,46716.0,46708.0,1.61063801]
[1641225971697,0.14033567,46716.0,46715.0,0.001]
[1641225972798,0.32433567,46716.0,46715.0,0.001]
[1641225972997,0.32433567,46716.0,46713.0,0.18]
[1641225973197,0.32433567,46716.0,46712.0,0.07222]
[1641225973897,0.32433567,46716.0,46715.0,0.001]
[1641225974097,0.32433567,46716.0,46713.0,0.321033]
[1641225974301,0.14033567,46716.0,46713.0,0.321033]
[1641225974899,0.31333567,46716.0,46713.0,0.321033]
[1641225975599,0.31333567,46716.0,46715.0,0.001]
[1641225976198,0.14033567,46716.0,46712.0,0.25222]
[1641225976600,0.14033567,46716.0,46712.0,0.07222]
[1641225976799,0.31833567,46716.0,46715.0,0.001]
[1641225977899,0.178,46716.0,46715.0,0.001]
[1641225978099,0.28067134,46722.0,46715.0,0.001]
[1641225978300,0.28067134,46722.0,46713.0,0.501492]
[1641225978301,0.28067134,46722.0,46721.0,0.001]
[1641225978803,0.28067134,46722.0,46713.0,0.78289028]
[1641225978804,0.46567134,46722.0,46713.0,0.78289028]
[1641225979002,0.46567134,46722.0,46721.0,0.001]
[1641225979200,0.46567134,46722.0,46713.0,0.78289028]
[1641225979503,0.46567134,46722.0,46721.0,0.001]
[1641225980302,0.28067134,46722.0,46721.0,0.001]
[1641225980900,0.4880795,46722.0,46717.0,0.84540483]
[1641225981408,0.4880795,46722.0,46715.0,2.05312601]
[1641225981708,0.18,46718.0,46715.0,0.84540483]
[1641225981909,0.14033567,46716.0,46715.0,0.84540483]
[1641225982206,0.19863567,46716.0,46715.0,0.84540483]
[1641225982607,0.19963567,46716.0,46715.0,0.84540483]
[1641225982810,0.19963567,46716.0,46713.0,1.20772118]
[1641225982811,0.56463567,46716.0,46713.0,0.84540483]
[1641225983007,0.56563567,46716.0,46713.0,0.84540483]
[1641225983308,0.56463567,46716.0,46713.0,0.84540483]
[1641225983507,0.38463567,46716.0,46713.0,0.84540483]
[1641225983909,0.38463567,46716.0,46711.0,0.84540483]
[1641225984109,0.19863567,46716.0,46711.0,0.84540483]
[1641225984512,0.009794,46715.0,46711.0,0.84540483]
[1641225984910,0.001,46712.0,46711.0,0.84540483]
[1641225985313,0.181,46712.0,46711.0,0.84540483]
[1641225985513,0.20241253,46712.0,46711.0,0.84540483]
[1641225985711,0.20241253,46712.0,46709.0,0.84540483]
[1641225985911,0.20141253,46712.0,46709.0,0.84540483]
[1641225986511,0.02141253,46712.0,46709.0,0.84540483]
[1641225986910,0.20541253,46712.0,46709.0,0.84540483]
[1641225987113,0.20541253,46712.0,46710.0,0.60448597]
[1641225987324,0.184,46712.0,46710.0,0.66185597]
[1641225988025,0.184,46712.0,46710.0,0.05737]
[1641225988222,0.14033567,46716.0,46710.0,0.90277483]
[1641225988622,0.14033567,46716.0,46715.0,0.001]
[1641225988824,0.32833567,46716.0,46710.0,0.90277483]
[1641225989425,0.32833567,46716.0,46710.0,0.05737]
[1641225989625,0.32833567,46716.0,46707.0,0.14033567]
[1641225990224,0.14033567,46716.0,46707.0,0.14033567]
[1641225990825,0.32533567,46716.0,46707.0,0.14033567]
[1641225992125,0.02141237,46712.0,46707.0,0.14033567]
[1641225992827,0.20541237,46712.0,46707.0,0.14033567]
[1641225994129,0.02141237,46712.0,46707.0,0.14033567]
[1641225994929,0.20441237,46712.0,46707.0,0.14033567]
[1641225997034,0.20241237,46712.0,46707.0,0.14033567]
[1641225998233,0.02141237,46712.0,46707.0,0.14033567]
[1641225998831,0.20341237,46712.0,46707.0,0.14033567]
[1641226000236,0.02141237,46712.0,46707.0,0.14033567]
[1641226000936,0.20341237,46712.0,46707.0,0.14033567]
[1641226001638,0.20341237,46712.0,46710.0,0.60297024]
[1641226002036,0.182,46712.0,46710.0,0.60297024]
[1641226002236,0.14033567,46716.0,46711.0,0.001]
[1641226002437,0.14033567,46716.0,46710.0,0.60297024]
[1641226002840,0.32633567,46716.0,46710.0,0.60297024]
[1641226004239,0.14033567,46716.0,46710.0,0.60297024]
[1641226004439,0.14033567,46716.0,46711.0,0.60297024]
[1641226005040,0.32733567,46716.0,46711.0,0.60297024]
[1641226006339,0.14033567,46716.0,46711.0,0.60297024]
[1641226006838,0.28533567,46716.0,46711.0,0.60297024]
[1641226007039,0.28533567,46716.0,46710.0,0.60297024]
[1641226008038,0.18,46712.0,46710.0,0.60297024]
[1641226008240,0.20141121,46715.0,46710.0,0.60297024]
[1641226008441,0.18,46711.0,46710.0,0.60297024]
[1641226008939,0.368,46711.0,46710.0,0.60297024]
[1641226009142,0.188,46711.0,46710.0,0.60297024]
[1641226010340,0.001,46711.0,46710.0,0.60297024]
[1641226010741,0.001,46711.0,46707.0,0.60297024]
[1641226010945,0.19,46711.0,46707.0,0.60297024]
[1641226011342,0.001,46708.0,46707.0,0.60297024]
[1641226011540,0.001,46708.0,46707.0,0.60397024]
[1641226011744,0.28233887,46708.0,46705.0,0.84540483]
[1641226011943,0.001,46706.0,46692.0,0.51399793]
[1641226012141,0.46067134,46693.0,46681.0,0.51412419]
[1641226012341,0.009794,46692.0,46680.0,0.02141905]
[1641226012541,3.30310718,46692.0,46680.0,0.02141905]
[1641226012744,3.30310718,46692.0,46689.0,0.68437918]
[1641226012943,0.185,46692.0,46689.0,0.68437918]
[1641226013143,0.001,46690.0,46689.0,0.68437918]
[1641226013743,0.001,46690.0,46685.0,0.68437918]
[1641226013944,0.185,46692.0,46685.0,0.68437918]
[1641226014143,0.185,46692.0,46687.0,0.18]
[1641226014341,0.20142534,46706.0,46687.0,0.18]
[1641226014544,0.20142534,46706.0,46688.0,0.323304]
[1641226014742,0.20142534,46706.0,46688.0,0.395804]
[1641226014942,0.38342534,46706.0,46688.0,0.395804]
[1641226015144,0.362,46706.0,46688.0,0.395804]
[1641226015442,0.2014178,46701.0,46688.0,0.395804]
[1641226015642,0.2014178,46701.0,46688.0,0.575804]
[1641226015843,0.0214178,46701.0,46689.0,0.01209359]
[1641226016047,0.14033567,46699.0,46689.0,0.15242926]
[1641226016244,0.14033567,46699.0,46690.0,0.317464]
[1641226017043,0.32233567,46699.0,46690.0,0.317464]
[1641226017445,0.32233567,46699.0,46689.0,0.21037567]
[1641226018245,0.14033567,46699.0,46690.0,0.323016]
[1641226018947,0.32233567,46699.0,46692.0,0.18]
[1641226019148,0.32233567,46699.0,46690.0,0.323016]
[1641226019349,0.32233567,46699.0,46689.0,0.39037567]
[1641226019548,0.32233567,46699.0,46689.0,0.21037567]
[1641226019948,0.32233567,46699.0,46690.0,0.323208]
[1641226020350,0.32233567,46699.0,46689.0,0.14033567]
[1641226020551,0.02142001,46696.0,46689.0,0.14033567]
[1641226021153,0.06717,46696.0,46689.0,0.14033567]
[1641226021352,0.20142216,46691.0,46689.0,0.14033567]
[1641226021654,0.02142216,46691.0,46689.0,0.14033567]
[1641226021851,0.20142216,46691.0,46689.0,0.14033567]
[1641226022052,0.02142216,46691.0,46689.0,0.14033567]
[1641226022252,0.02142384,46690.0,46689.0,0.14033567]
[1641226023054,0.21042384,46690.0,46689.0,0.14033567]
[1641226024255,0.02142384,46690.0,46689.0,0.14033567]
[1641226024963,0.20942384,46690.0,46689.0,0.14033567]
[1641226026156,0.02142384,46690.0,46689.0,0.14033567]
[1641226026954,0.21142384,46690.0,46689.0,0.14033567]
[1641226028456,0.02142384,46690.0,46689.0,0.14033567]
[1641226029076,0.20842384,46690.0,46689.0,0.14033567]
[1641226029876,0.20842384,46690.0,46683.0,0.14033567]
[1641226030682,0.18,46689.0,46683.0,0.14033567]
[1641226030884,0.009794,46688.0,46676.0,0.14033567]
[1641226031083,0.18,46682.0,46676.0,0.14033567]
[1641226031286,0.18,46682.0,46670.0,1.8025]
[1641226031287,0.02142826,46678.0,46670.0,1.8025]
[1641226031679,0.02142826,46678.0,46663.0,0.60239776]
[1641226032079,0.02142826,46678.0,46662.0,0.14033567]
[1641226032278,0.14033567,46673.0,46662.0,0.14033567]
[1641226032479,0.02143118,46671.0,46662.0,0.14033567]
[1641226033081,0.20343118,46671.0,46662.0,0.14033567]
[1641226034483,0.02143118,46671.0,46669.0,0.60239776]
[1641226035082,0.21243118,46671.0,46669.0,0.60239776]
[1641226036388,0.009794,46670.0,46668.0,0.8483597]
[1641226036987,0.001,46669.0,46668.0,0.8483597]
[1641226037386,0.001,46669.0,46667.0,0.62239776]
[1641226037686,0.199794,46670.0,46667.0,0.62239776]
[1641226038088,0.379794,46670.0,46667.0,0.62239776]
[1641226038388,0.189794,46670.0,46667.0,0.62239776]
[1641226038688,0.02143335,46668.0,46667.0,0.62239776]
[1641226039289,0.02143335,46668.0,46667.0,0.02]
[1641226040292,0.16176902,46668.0,46667.0,0.02]
[1641226041094,0.34776902,46668.0,46667.0,0.02]
[1641226041292,1.89533462,46668.0,46667.0,0.02]
[1641226041496,1.89633462,46668.0,46667.0,0.02]
[1641226041693,1.89633462,46668.0,46650.0,0.5]
[1641226041895,1.299,46667.0,46654.0,1.9712]
[1641226042293,0.14033567,46663.0,46654.0,1.9712]
[1641226042694,0.14033567,46663.0,46653.0,0.14033567]
[1641226043093,0.32533567,46663.0,46653.0,0.14033567]
[1641226044197,0.02143532,46662.0,46653.0,0.14033567]
[1641226044997,0.20643532,46662.0,46653.0,0.14033567]
[1641226046299,0.14033567,46663.0,46653.0,0.14033567]
[1641226046300,0.32033567,46663.0,46653.0,0.14033567]
[1641226046502,0.0214371,46659.0,46650.0,0.5]
[1641226046700,0.02143967,46653.0,46650.0,0.5]
[1641226047200,0.18,46653.0,46650.0,0.5]
[1641226047502,0.002,46651.0,46650.0,0.5]
[1641226047706,0.02344363,46651.0,46650.0,0.5]
[1641226048303,0.30411497,46651.0,46641.0,0.60239776]
[1641226048500,0.02144567,46642.0,46641.0,0.60239776]
[1641226049106,0.21044567,46642.0,46641.0,0.60239776]
[1641226049301,0.21044567,46642.0,46636.0,0.14033567]
[1641226049502,0.189,46642.0,46636.0,0.14033567]
[1641226049900,0.189,46642.0,46636.0,0.32033567]
[1641226050501,0.02144389,46644.0,46636.0,0.32033567]
[1641226051001,0.20544389,46644.0,46636.0,0.32033567]
[1641226052202,0.20544389,46644.0,46639.0,0.18]
[1641226052401,0.02144389,46644.0,46639.0,0.18]
[1641226052804,0.14033567,46646.0,46643.0,0.001]
[1641226053003,0.186,46644.0,46636.0,0.14033567]
[1641226054403,0.14033567,46646.0,46636.0,0.14033567]
[1641226054404,0.02144524,46641.0,46636.0,0.14033567]
[1641226054707,0.14033567,46646.0,46636.0,0.14033567]
[1641226054905,0.02144335,46645.0,46636.0,0.14033567]
[1641226055105,0.184,46641.0,46636.0,0.14033567]
[1641226056113,0.184,46641.0,46638.0,0.18]
[1641226056309,0.02144372,46644.0,46638.0,0.18]
[1641226056509,0.02144372,46644.0,46636.0,0.14033567]
[1641226056908,0.02144372,46644.0,46638.0,0.18]
[1641226057109,0.20244372,46644.0,46637.0,0.321022]
[1641226057809,0.20244372,46644.0,46638.0,0.18]
[1641226058409,0.009794,46645.0,46638.0,0.18]
[1641226058910,0.009794,46645.0,46636.0,0.14033567]
[1641226059213,0.183794,46645.0,46636.0,0.14033567]
[1641226059611,0.183794,46645.0,46637.0,0.323554]
[1641226060011,0.183794,46645.0,46639.0,0.18]
[1641226060414,0.83622298,46642.0,46639.0,0.18]
[1641226060712,0.83622298,46642.0,46637.0,0.29128404]
[1641226061111,1.00922298,46642.0,46640.0,0.29128404]
[1641226062113,1.19460425,46644.0,46641.0,0.18]
[1641226062335,0.75461895,46656.0,46643.0,1.25122097]
[1641226062517,0.85803312,46660.0,46655.0,0.181]
[1641226062714,0.85803312,46660.0,46659.0,0.181]
[1641226062915,0.85803312,46660.0,46659.0,0.182]
[1641226063118,1.02703312,46660.0,46659.0,0.20360453]
[1641226063320,0.14033567,46671.0,46659.0,0.20260453]
[1641226063517,1.6209617,46676.0,46670.0,0.18]
[1641226063719,1.6209617,46676.0,46670.0,0.07338]
[1641226063920,1.6209617,46676.0,46671.0,0.322584]
[1641226064117,1.6209617,46676.0,46670.0,0.07338]
[1641226064322,0.02143176,46671.0,46670.0,0.07338]
[1641226064518,0.20143176,46671.0,46670.0,0.07338]
[1641226064718,0.02143176,46671.0,46667.0,0.60515907]
[1641226064916,0.03122576,46671.0,46667.0,0.60515907]
[1641226065116,0.03122576,46671.0,46670.0,0.192]
[1641226066518,0.03122576,46671.0,46663.0,0.14033567]
[1641226066718,0.02143176,46671.0,46663.0,0.14033567]
[1641226067218,0.02143176,46671.0,46663.0,0.33333567]
[1641226067419,0.02143282,46668.0,46663.0,0.33333567]
[1641226068425,0.02143282,46668.0,46663.0,0.14033567]
[1641226068822,0.07599,46673.0,46656.0,0.60515907]
[1641226068823,0.02143496,46664.0,46656.0,0.60515907]
[1641226069320,0.18,46666.0,46663.0,0.191]
[1641226069526,0.001,46664.0,46663.0,0.191]
[1641226070538,0.001,46664.0,46654.0,1.9482]
[1641226070539,0.30310869,46664.0,46654.0,1.9482]
[1641226070739,0.30210869,46664.0,46654.0,1.9482]
[1641226071042,0.30210869,46664.0,46651.0,1.9576]
[1641226071244,0.30210869,46664.0,46654.0,0.191]
[1641226071440,0.02143729,46658.0,46654.0,0.191]
[1641226072441,0.18,46656.0,46654.0,0.191]
[1641226072644,0.02143915,46655.0,46654.0,0.191]
[1641226073142,0.02243915,46655.0,46654.0,0.172]
[1641226073642,0.02143915,46655.0,46654.0,0.172]
[1641226074241,0.20143915,46655.0,46654.0,0.172]
[1641226074442,0.34177482,46655.0,46644.0,0.60515907]
[1641226074645,0.16177482,46655.0,46644.0,0.60515907]
[1641226075244,0.18,46653.0,46644.0,0.80115907]
[1641226075445,0.18,46653.0,46644.0,0.196]
[1641226075845,0.16177482,46655.0,46644.0,0.196]
[1641226076244,0.34177482,46655.0,46644.0,0.196]
[1641226076445,0.14033567,46646.0,46643.0,0.60515907]
[1641226076846,0.83890669,46645.0,46643.0,0.60515907]
[1641226077248,0.83890669,46645.0,46643.0,0.79615907]
[1641226078347,0.14033567,46646.0,46643.0,0.79615907]
[1641226078547,0.14033567,46646.0,46643.0,0.60515907]
[1641226078748,0.14033567,46646.0,46641.0,0.60515907]
[1641226079148,0.14033567,46646.0,46643.0,0.193]
[1641226079851,1.19856331,46645.0,46643.0,0.193]
[1641226080549,1.19856331,46645.0,46641.0,0.60515907]
[1641226081051,1.19856331,46645.0,46640.0,0.60515907]
[1641226081251,0.18,46643.0,46641.0,0.194]
[1641226081455,0.18,46643.0,46637.0,1.2097125]
[1641226081456,0.25987,46643.0,46637.0,1.2097125]
[1641226081652,0.181,46638.0,46637.0,0.04292334]
[1641226081850,0.181,46638.0,46637.0,0.02333534]
[1641226082051,1.5127,46638.0,46637.0,0.81921545]
[1641226082252,1.5127,46638.0,46628.0,1.44558411]
[1641226082455,0.18,46629.0,46621.0,1.56604538]
[1641226082649,0.2127,46628.0,46621.0,1.56604538]
[1641226082852,0.18,46622.0,46621.0,1.56604538]
[1641226083054,0.3927,46622.0,46621.0,1.51244538]
[1641226083351,0.3937,46622.0,46621.0,1.40524538]
[1641226083551,0.47472763,46622.0,46621.0,1.32534538]
[1641226083751,0.47472763,46622.0,46621.0,1.17054538]
[1641226083953,0.47472763,46622.0,46621.0,1.15824538]
[1641226084150,0.47472763,46622.0,46621.0,1.12544538]
[1641226084355,1.59372763,46622.0,46621.0,0.01854538]
[1641226084650,1.5127,46622.0,46611.0,1.41424002]
[1641226084955,2.38547219,46622.0,46600.0,0.5]
[1641226085171,2.20447219,46622.0,46600.0,0.23]
[1641226085350,0.18,46601.0,46598.0,1.41639002]
[1641226085553,0.18,46601.0,46598.0,1.34939002]
[1641226085750,0.18,46601.0,46598.0,1.22299002]
[1641226085951,0.18,46601.0,46598.0,1.04789002]
[1641226086151,0.18,46601.0,46598.0,0.87739002]
[1641226086352,0.18,46601.0,46598.0,0.66869002]
[1641226086554,0.18,46601.0,46598.0,0.55059002]
[1641226086752,0.18,46601.0,46598.0,0.34259002]
[1641226086953,0.18,46601.0,46598.0,0.19249002]
[1641226087153,0.20147183,46601.0,46591.0,0.44938804]
[1641226087354,0.08988183,46601.0,46591.0,0.44938804]
[1641226087556,0.14133567,46599.0,46590.0,0.009794]
[1641226087763,0.02146659,46595.0,46590.0,0.009794]
[1641226087956,0.02146659,46595.0,46592.0,0.18]
[1641226088155,0.191,46601.0,46590.0,0.009794]
[1641226088156,0.02146738,46593.0,46590.0,0.009794]
[1641226088357,0.0214669,46594.0,46588.0,0.14033567]
[1641226088556,0.34567134,46589.0,46576.0,0.0214669]
[1641226088756,0.28167134,46589.0,46587.0,0.115]
[1641226088957,0.14033567,46589.0,46587.0,0.115]
[1641226089158,0.02146767,46592.0,46588.0,0.323692]
[1641226089358,0.02146767,46592.0,46584.0,0.009794]
[1641226089557,0.02146985,46587.0,46584.0,0.009794]
[1641226089757,1.119,46583.0,46578.0,0.022]
[1641226089959,0.08747237,46585.0,46578.0,0.022]
[1641226089960,0.02147237,46585.0,46578.0,0.022]
[1641226090156,0.643,46582.0,46572.0,0.14033567]
[1641226090359,0.643,46582.0,46581.0,0.022]
[1641226090556,0.2146,46584.0,46581.0,0.16233567]
[1641226090757,0.0004,46596.0,46581.0,0.18562222]
[1641226090961,0.02146455,46599.0,46581.0,0.18562222]
[1641226090962,0.02146455,46599.0,46585.0,0.022]
[1641226091160,0.158,46600.0,46586.0,0.009794]
[1641226091461,0.158,46602.0,46598.0,0.022]
[1641226091759,0.158,46610.0,46598.0,0.10277]
[1641226091960,0.02146404,46601.0,46598.0,0.10277]
[1641226092561,1.8949,46628.0,46600.0,0.14033567]
[1641226092562,0.14033567,46611.0,46600.0,0.14033567]
[1641226092762,0.14033567,46616.0,46609.0,0.022]
[1641226092964,0.001,46610.0,46609.0,0.06649]
[1641226093161,0.175,46611.0,46609.0,0.08849]
[1641226093860,0.04586144,46610.0,46609.0,0.08849]
[1641226094260,0.175,46611.0,46609.0,0.08849]
[1641226094460,1.66161302,46614.0,46609.0,0.08849]
[1641226094662,0.29833567,46616.0,46612.0,0.022]
[1641226094862,0.02145745,46615.0,46612.0,0.022]
[1641226095062,0.02145745,46615.0,46611.0,0.022]
[1641226095262,0.158,46614.0,46612.0,0.15]
[1641226095466,0.02145973,46613.0,46612.0,0.15]
[1641226095663,1.14245973,46613.0,46612.0,0.15]
[1641226095864,1.14145973,46613.0,46612.0,0.12783523]
[1641226096065,1.12,46613.0,46612.0,0.12783523]
[1641226096465,0.02246195,46613.0,46601.0,0.84832242]
[1641226096666,0.14033567,46606.0,46601.0,0.84832242]
[1641226096968,0.14033567,46606.0,46605.0,0.022]
[1641226097164,0.02146195,46613.0,46605.0,0.08194]
[1641226097365,0.182,46606.0,46605.0,0.05994]
[1641226098366,0.182,46606.0,46601.0,0.181]
[1641226098567,0.158,46612.0,46600.0,0.98865809]
[1641226098767,0.158,46612.0,46608.0,0.022]
[1641226098967,0.001,46609.0,46608.0,0.022]
[1641226099169,0.351,46612.0,46608.0,0.022]
[1641226099370,0.02145923,46611.0,46608.0,0.022]
[1641226099874,0.02145923,46611.0,46609.0,0.022]